[Event "World Junior U20 Open 2018"]
[Site "Gebze"]
[Date "2018.09.12"]
[Round "8.45"]
[White "Agibileg, Uurtsaikh"]
[Black "Secheres, Adrian-Simion"]
[Result "1-0"]
[ECO "E58"]
[WhiteElo "2321"]
[BlackElo "2408"]
[Annotator "NA"]
[PlyCount "78"]
[EventDate "2018.09.05"]
[EventType "swiss"]
[EventCountry "TUR"]
[SourceTitle "playchess.com"]
[Source "ChessBase"]
[SourceQuality "1"]
[TimeControl "40/5400+30:1800+30"]

1. d4 {[%emt 0:00:30]} Nf6 {[%emt 0:00:30]} 2. c4 {[%emt 0:00:00]} e6 {[%emt 0:00:00]} 3. Nc3 {[%emt 0:00:00]} Bb4 {[%emt 0:00:00]} 4. a3 {[%emt 0:00:30]} Bxc3+ {[%emt 0:00:30]} 5. bxc3 {[%emt 0:00:30]} Nc6 {[%emt 0:00:30]} 6. e3 {[%emt 0:00:30]} b6 {[%emt 0:00:30]} 7. Bd3 {[%emt 0:00:00]} Na5 {[%emt 0:00:00]} 8. Nf3 {[%emt 0:01:00]} Ba6 {[%emt 0:00:00]} 9. Nd2 {[%emt 0:01:30]} d5 {[%emt 0:00:00]} 10. Qe2 {[%emt 0:06:30]} O-O {[%emt 0:00:00]} 11. O-O {[%emt 0:00:30]} c5 {[%emt 0:00:30]} 12. cxd5 {[%emt 0:00:30] E58: Nimzo-Indian: Rubinstein: Main Line: 7...Nc6 8 a3 Bxc3} Bxd3 {[%emt 0:00:30]} 13. Qxd3 {[%emt 0:00:30]} exd5 {[%emt 0:00:00]} 14. f3 $146 {[%emt 0:01:30]} ({Predecessor:} 14. Bb2 Qd7 15. dxc5 bxc5 16. c4 dxc4 17. Qc3 Qb5 18. Ne4 Rfb8 19. Rab1 Rb6 {0-1 (28) Chmelik,J (2015)-Repka,C (2534) Teplice 2018}) 14... Nc6 {[%emt 0:08:00]} 15. Bb2 {[%emt 0:02:30]} Nh5 {[%emt 0:17:30]} 16. Rad1 {[%emt 0:08:30]} c4 {[%emt 0:01:30]} 17. Qc2 {[%emt 0:00:30]} Re8 {[%emt 0:19:30]} 18. Rfe1 {[%emt 0:01:30]} Qg5 {[%emt 0:05:30]} 19. Bc1 {[%emt 0:02:30]} f5 {[%emt 0:01:30]} 20. e4 {[%emt 0:04:30]} fxe4 {[%emt 0:00:30]} 21. fxe4 {[%emt 0:00:30]} Qg6 {[%emt 0:01:30]} 22. Qa2 {[%emt 0:15:30]} Na5 $14 {[%emt 0:12:30]} ({Reject} 22... Nf4 23. Nxc4 Rxe4 24. Bxf4 $16) 23. exd5 {[%emt 0:05:30]} Qd6 {[%emt 0:05:30]} 24. Qc2 {[%emt 0:11:30]} Qxd5 {[%emt 0:00:30]} 25. Nf3 {[%emt 0:00:30]} Nb3 {[%emt 0:04:30]} 26. Bg5 {[%emt 0:09:30]} h6 {[%emt 0:04:27]} 27. Re5 {[%emt 0:15:13]} Rxe5 {[%emt 0:02:45]} 28. dxe5 {[%emt 0:00:07]} Qc5+ {[%emt 0:03:12]} 29. Kh1 {[%emt 0:00:04]} hxg5 {[%emt 0:00:14]} 30. Qe4 {[%emt 0:00:57]} Rf8 {[%emt 0:09:03]} 31. Nxg5 {[%emt 0:00:25]} Nf6 {[%emt 0:00:21]} 32. exf6 {[%emt 0:01:35]} Qxg5 {[%emt 0:00:07]} 33. Qxc4+ {[%emt 0:00:02]} Rf7 {[%emt 0:00:38]} 34. Rd8+ {[%emt 0:03:57]} Kh7 {[%emt 0:00:02]} 35. Qd3+ {[%emt 0:00:16]} g6 {[%emt 0:00:26]} 36. Qh3+ {[%emt 0:00:36]} Qh5 {[%emt 0:00:40]} 37. Qc8 {[%emt 0:00:11]} Rf8 {[%emt 0:01:21]} 38. Rd7+ {[%emt 0:00:16]} Rf7 {[%emt 0:00:48]} 39. Rd8 {[%emt 0:00:30]} Kh6 {[%emt 0:00:30]} 1-0

[Event "World Junior U20 Open 2018"]
[Site "Gebze"]
[Date "2018.09.12"]
[Round "8.46"]
[White "Pang, Tao"]
[Black "Huber, Martin Christian"]
[Result "1-0"]
[ECO "D95"]
[WhiteElo "2290"]
[BlackElo "2390"]
[Annotator "NA"]
[PlyCount "61"]
[EventDate "2018.09.05"]
[EventType "swiss"]
[EventCountry "TUR"]
[SourceTitle "playchess.com"]
[Source "ChessBase"]
[SourceQuality "1"]
[TimeControl "40/5400+30:1800+30"]

1. Nf3 {[%emt 0:00:30]} Nf6 {[%emt 0:00:30]} 2. c4 {[%emt 0:00:00]} g6 {[%emt 0:00:00]} 3. Nc3 {[%emt 0:01:00]} Bg7 {[%emt 0:00:00]} 4. d4 {[%emt 0:00:30]} d5 {[%emt 0:00:30]} 5. e3 {[%emt 0:13:30]} O-O {[%emt 0:02:30]} 6. Qb3 {[%emt 0:00:30]} e6 {[%emt 0:00:30]} 7. Be2 {[%emt 0:02:30]} b6 {[%emt 0:00:30]} 8. cxd5 {[%emt 0:01:30]} exd5 {[%emt 0:00:30]} 9. O-O {[%emt 0:00:30]} Bb7 {[%emt 0:00:30]} 10. a4 {[%emt 0:04:30]} a5 {[%emt 0:03:30]} 11. Ne5 {[%emt 0:04:30]} Nbd7 {[%emt 0:05:30]} 12. f4 {[%emt 0:02:30]} Ne8 {[%emt 0:26:30]} 13. Bd2 {[%emt 0:02:30]} Nxe5 {[%emt 0:13:30]} 14. fxe5 {[%emt 0:00:30]} c6 {[%emt 0:02:30]} 15. e4 {[%emt 0:12:30]} dxe4 {[%emt 0:04:30]} 16. Be3 {[%emt 0:00:30]} Ba6 $16 {[%emt 0:10:30]} 17. Bxa6 {[%emt 0:01:30]} Rxa6 {[%emt 0:00:30]} 18. Qc4 {[%emt 0:00:30]} Qa8 {[%emt 0:00:30]} 19. Nxe4 {[%emt 0:00:30]} Nc7 {[%emt 0:06:30]} 20. Nd6 {[%emt 0:18:30]} Nd5 {[%emt 0:00:36]} 21. Bg5 {[%emt 0:00:30]} Ra7 {[%emt 0:01:11]} 22. Ra3 {[%emt 0:01:30]} Rd7 {[%emt 0:06:01]} 23. Ne4 {[%emt 0:06:30]} c5 {[%emt 0:08:17]} 24. dxc5 {[%emt 0:00:30]} bxc5 {[%emt 0:00:12]} 25. Nf6+ {[%emt 0:01:30]} Bxf6 {[%emt 0:01:15]} 26. Bxf6 {[%emt 0:00:30]} Nxf6 {[%emt 0:01:48]} 27. exf6 {[%emt 0:00:30]} Rd2 {[%emt 0:00:22]} 28. Raf3 {[%emt 0:00:30]} Re8 {[%emt 0:02:17]} 29. Qxc5 {[%emt 0:06:41]} Ree2 {[%emt 0:00:30]} 30. R3f2 {[%emt 0:00:14]} Qxg2+ {[%emt 0:00:50]} 31. Kxg2 {[%emt 0:00:03]} 1-0

[Event "World Junior U20 Open 2018"]
[Site "Gebze"]
[Date "2018.09.12"]
[Round "8.47"]
[White "Macovei, Andrei"]
[Black "Garidmagnai, Byambasuren"]
[Result "1-0"]
[ECO "C11"]
[WhiteElo "2385"]
[BlackElo "2287"]
[Annotator "NA"]
[PlyCount "113"]
[EventDate "2018.09.05"]
[EventType "swiss"]
[EventCountry "TUR"]
[SourceTitle "playchess.com"]
[Source "ChessBase"]
[SourceQuality "1"]
[TimeControl "40/5400+30:1800+30"]

1. e4 {[%emt 0:02:30]} e6 {[%emt 0:00:30]} 2. d4 {[%emt 0:00:30]} d5 {[%emt 0:00:30]} 3. Nc3 {[%emt 0:00:00]} Nf6 {[%emt 0:00:00]} 4. e5 {[%emt 0:01:00]} Nfd7 {[%emt 0:00:00]} 5. f4 {[%emt 0:00:30]} c5 {[%emt 0:00:00]} 6. Nf3 {[%emt 0:00:00]} Nc6 {[%emt 0:00:00]} 7. Be3 {[%emt 0:01:00]} cxd4 {[%emt 0:00:00]} 8. Nxd4 {[%emt 0:00:30]} Bc5 {[%emt 0:00:00]} 9. Qd2 {[%emt 0:00:30]} a6 {[%emt 0:02:30]} 10. O-O-O {[%emt 0:02:30]} O-O {[%emt 0:00:30]} 11. h4 {[%emt 0:06:30]} Nxd4 {[%emt 0:01:30]} 12. Bxd4 {[%emt 0:00:00]} b5 {[%emt 0:00:30]} 13. h5 {[%emt 0:14:00]} b4 {[%emt 0:01:30]} 14. Na4 {[%emt 0:00:00]} Bxd4 {[%emt 0:00:30]} 15. Qxd4 {[%emt 0:00:00]} Qa5 {[%emt 0:00:30]} 16. b3 {[%emt 0:00:30]} Bb7 {[%emt 0:00:00]} 17. Kb1 {[%emt 0:01:30]} Bc6 {[%emt 0:02:00]} 18. Nb2 {[%emt 0:00:00]} Qc5 {[%emt 0:03:30]} 19. Qxc5 {[%emt 0:09:00]} Nxc5 {[%emt 0:00:30]} 20. Rd4 {[%emt 0:00:30]} a5 {[%emt 0:14:30]} 21. Bd3 {[%emt 0:00:30]} Rfb8 {[%emt 0:00:30]} 22. h6 {[%emt 0:21:30]} g6 {[%emt 0:00:30]} 23. g4 {[%emt 0:14:30]} Bb5 {[%emt 0:02:30]} 24. f5 {[%emt 0:03:30]} Bxd3 {[%emt 0:12:30]} 25. cxd3 {[%emt 0:00:30]} Re8 {[%emt 0:12:30]} 26. fxg6 {[%emt 0:05:44]} fxg6 {[%emt 0:00:30]} 27. Rf4 {[%emt 0:00:15]} Nd7 {[%emt 0:04:30]} 28. d4 {[%emt 0:00:21]} Rac8 {[%emt 0:00:30]} 29. Na4 {[%emt 0:03:54]} Rf8 {[%emt 0:01:30]} 30. Rhf1 {[%emt 0:03:39]} Rxf4 {[%emt 0:04:30]} 31. Rxf4 {[%emt 0:00:01]} Rf8 {[%emt 0:03:30]} 32. Rxf8+ {[%emt 0:00:43]} Kxf8 {[%emt 0:00:30]} 33. g5 {[%emt 0:00:30]} Ke7 {[%emt 0:00:00]} 34. Kc2 {[%emt 0:00:28]} Nb8 {[%emt 0:09:00]} 35. Kd3 {[%emt 0:00:20]} Nc6 {[%emt 0:00:00]} 36. Nc5 {[%emt 0:02:07]} Nd8 {[%emt 0:02:00]} 37. Ke3 {[%emt 0:00:17]} Nf7 {[%emt 0:00:30]} 38. Kf4 {[%emt 0:00:54]} Nd8 {[%emt 0:00:00]} 39. Nd3 {[%emt 0:00:40]} Nc6 {[%emt 0:06:09]} 40. Ke3 {[%emt 0:00:00]} Na7 {[%emt 0:00:00]} 41. Nf2 {[%emt 0:03:07]} Nb5 {[%emt 0:11:51]} 42. Ng4 {[%emt 0:00:30]} Nc3 {[%emt 0:00:30]} 43. Nf6 {[%emt 0:00:00]} Kf7 {[%emt 0:02:30]} 44. Nxh7 {[%emt 0:00:00]} Nxa2 {[%emt 0:00:30]} 45. Kd2 {[%emt 0:01:30]} Kg8 {[%emt 0:07:30]} 46. Nf6+ {[%emt 0:03:30]} Kh8 {[%emt 0:00:30]} 47. Nd7 {[%emt 0:01:30]} Nc3 {[%emt 0:01:30]} 48. Nc5 {[%emt 0:00:30]} Kg8 {[%emt 0:01:30]} 49. Nxe6 {[%emt 0:00:30]} Ne4+ {[%emt 0:00:30]} 50. Kd3 {[%emt 0:01:30]} Nf2+ {[%emt 0:00:30]} 51. Ke2 {[%emt 0:02:30]} Ne4 {[%emt 0:00:30]} 52. Ke3 {[%emt 0:00:30]} Kh8 {[%emt 0:00:30]} 53. Nf8 {[%emt 0:04:30]} Nxg5 {[%emt 0:00:30]} 54. Nxg6+ {[%emt 0:00:30]} Kh7 {[%emt 0:00:30]} 55. Nf4 {[%emt 0:00:30]} Kxh6 {[%emt 0:00:30]} 56. Nxd5 {[%emt 0:00:30]} Kg6 {[%emt 0:00:00]} 57. Ne7+ {[%emt 0:00:30]} 1-0

[Event "World Junior U20 Open 2018"]
[Site "Gebze"]
[Date "2018.09.12"]
[Round "8.48"]
[White "Agmanov, Zhandos"]
[Black "Kamer, Kayra"]
[Result "1/2-1/2"]
[ECO "A31"]
[WhiteElo "2379"]
[BlackElo "2205"]
[Annotator "NA"]
[PlyCount "228"]
[EventDate "2018.09.05"]
[EventType "swiss"]
[EventCountry "TUR"]
[SourceTitle "playchess.com"]
[Source "ChessBase"]
[SourceQuality "1"]
[TimeControl "40/5400+30:1800+30"]

1. e4 {[%emt 0:00:30]} c5 {[%emt 0:00:30]} 2. Nf3 {[%emt 0:00:30]} e6 {[%emt 0:00:30]} 3. d4 {[%emt 0:00:00]} cxd4 {[%emt 0:00:00]} 4. Nxd4 {[%emt 0:00:00]} a6 {[%emt 0:00:00]} 5. c4 {[%emt 0:00:00]} Nf6 {[%emt 0:00:00]} 6. Nc3 {[%emt 0:00:00] LiveBook: 2500 Games} Qc7 {[%emt 0:00:00]} 7. a3 $14 {[%emt 0:00:30]} Be7 {[%emt 0:00:00]} 8. Be3 {[%emt 0:00:00]} d6 {[%emt 0:00:00]} 9. Be2 {[%emt 0:00:00]} b6 {[%emt 0:00:30]} 10. f3 {[%emt 0:00:30]} Bb7 {[%emt 0:00:00]} 11. Rc1 {[%emt 0:00:30]} O-O {[%emt 0:00:00]} 12. O-O {[%emt 0:00:30]} Nbd7 {[%emt 0:00:00]} 13. b4 {[%emt 0:02:30]} Rac8 {[%emt 0:00:00]} 14. Qd2 {[%emt 0:02:30]} Rfe8 {[%emt 0:00:30]} 15. Rc2 {[%emt 0:01:30]} Qb8 {[%emt 0:00:00]} 16. Kh1 {[%emt 0:00:30]} Bd8 {[%emt 0:03:00]} 17. Bg1 {[%emt 0:09:30]} Bc7 {[%emt 0:00:30]} 18. Nb3 {[%emt 0:00:30]} d5 {[%emt 0:06:30]} 19. exd5 {[%emt 0:12:30]} Bf4 {[%emt 0:00:30]} 20. Qd1 {[%emt 0:03:30]} exd5 {[%emt 0:00:00]} 21. c5 {[%emt 0:20:30]} bxc5 {[%emt 0:01:00]} 22. Nxc5 {[%emt 0:00:30]} Nxc5 {[%emt 0:01:30]} 23. bxc5 {[%emt 0:00:00]} Re5 {[%emt 0:05:30]} 24. g3 {[%emt 0:05:00]} Be3 {[%emt 0:00:00]} 25. Bxe3 {[%emt 0:01:30]} Rxe3 {[%emt 0:00:00]} 26. Qd4 {[%emt 0:00:30]} Qe5 {[%emt 0:00:00]} 27. Qxe5 {[%emt 0:16:30]} Rxe5 {[%emt 0:00:00]} 28. Na4 {[%emt 0:00:30]} d4 {[%emt 0:00:30]} 29. Kg1 {[%emt 0:02:30]} Re3 {[%emt 0:02:30]} 30. Rd2 {[%emt 0:03:25]} Rce8 {[%emt 0:01:30]} 31. Bd1 {[%emt 0:11:54]} Rd8 {[%emt 0:00:30]} 32. Nb6 {[%emt 0:01:23]} Rxa3 {[%emt 0:03:30]} 33. Nc4 {[%emt 0:00:46]} Rc3 {[%emt 0:00:30]} 34. Nd6 {[%emt 0:01:07]} Bc6 {[%emt 0:00:30]} 35. Rxd4 {[%emt 0:00:32]} Rxc5 {[%emt 0:00:30]} 36. Bb3 {[%emt 0:00:56]} Kf8 {[%emt 0:00:30]} 37. Ne4 {[%emt 0:03:45]} Rxd4 {[%emt 0:00:30]} 38. Nxc5 {[%emt 0:00:01]} Bb5 {[%emt 0:01:30]} 39. Ra1 {[%emt 0:00:35]} Rd6 {[%emt 0:00:30]} 40. Bd1 {[%emt 0:00:00]} Rc6 {[%emt 0:00:00]} 41. Nb3 {[%emt 0:01:36]} Rd6 {[%emt 0:03:00]} 42. Nc5 {[%emt 0:01:30]} Rd5 {[%emt 0:00:30]} 43. Nb3 {[%emt 0:01:30]} Nd7 {[%emt 0:00:30]} 44. Bc2 {[%emt 0:05:30]} f5 {[%emt 0:02:30]} 45. g4 {[%emt 0:01:30]} fxg4 {[%emt 0:01:30]} 46. fxg4 {[%emt 0:01:30]} Rg5 {[%emt 0:00:30]} 47. Bf5 {[%emt 0:01:30]} Ne5 {[%emt 0:00:00]} 48. Nd4 {[%emt 0:00:30]} Ke7 {[%emt 0:06:00]} 49. h4 {[%emt 0:04:22]} Rxg4+ {[%emt 0:00:30]} 50. Bxg4 {[%emt 0:00:03]} Nxg4 {[%emt 0:00:00]} 51. Nxb5 {[%emt 0:01:54]} axb5 {[%emt 0:00:00]} 52. Rb1 {[%emt 0:00:00]} Kf6 {[%emt 0:02:30]} 53. Rxb5 {[%emt 0:00:00]} Ne3 {[%emt 0:00:30]} 54. Kh2 {[%emt 0:00:21]} Nf5 {[%emt 0:01:30]} 55. Kh3 {[%emt 0:00:30]} h5 {[%emt 0:00:00]} 56. Ra5 {[%emt 0:00:00]} g6 {[%emt 0:01:00]} 57. Ra4 {[%emt 0:00:05]} Ng7 {[%emt 0:00:30]} 58. Kg3 {[%emt 0:00:20]} Ne6 {[%emt 0:00:30]} 59. Ra6 {[%emt 0:00:17]} Kf5 {[%emt 0:00:30]} 60. Ra5+ {[%emt 0:02:00]} Kf6 {[%emt 0:00:00]} 61. Ra1 {[%emt 0:01:23]} g5 {[%emt 0:00:00]} 62. Ra6 {[%emt 0:00:08]} gxh4+ {[%emt 0:00:30]} 63. Kxh4 {[%emt 0:00:33]} Kf5 {[%emt 0:00:30]} 64. Kxh5 {[%emt 0:00:30]} Nf4+ {[%emt 0:00:30]} 65. Kh4 {[%emt 0:00:00]} Ng6+ {[%emt 0:00:00]} 66. Kg3 {[%emt 0:00:00]} Ne5 {[%emt 0:00:00]} 67. Ra4 {[%emt 0:00:00]} Ng6 {[%emt 0:00:00]} 68. Ra1 {[%emt 0:00:10]} Ne5 {[%emt 0:01:00]} 69. Rf1+ {[%emt 0:00:02]} Ke4 {[%emt 0:00:00]} 70. Rf4+ {[%emt 0:00:00]} Kd5 {[%emt 0:00:00]} 71. Ra4 {[%emt 0:00:00]} Nd3 {[%emt 0:00:00]} 72. Kf3 {[%emt 0:00:22]} Ne5+ {[%emt 0:00:00]} 73. Ke3 {[%emt 0:00:40]} Nc4+ {[%emt 0:00:30]} 74. Kf4 {[%emt 0:00:24]} Kd4 {[%emt 0:00:30]} 75. Ra8 {[%emt 0:00:26]} Nd6 {[%emt 0:00:30]} 76. Ra1 {[%emt 0:00:30]} Nc4 {[%emt 0:00:30]} 77. Rd1+ {[%emt 0:00:30]} Kc5 {[%emt 0:00:30]} 78. Ke4 {[%emt 0:00:30]} Nd6+ {[%emt 0:00:30]} 79. Ke5 {[%emt 0:00:30]} Nc4+ {[%emt 0:00:00]} 80. Ke6 {[%emt 0:00:00]} Nb6 {[%emt 0:00:00]} 81. Rd8 {[%emt 0:00:00]} Kc6 {[%emt 0:00:30]} 82. Ke5 {[%emt 0:01:30]} Kc5 {[%emt 0:00:30]} 83. Ke4 {[%emt 0:00:00]} Kc4 {[%emt 0:01:30]} 84. Rd1 {[%emt 0:01:00]} Kc5 {[%emt 0:00:30]} 85. Rc1+ {[%emt 0:00:00]} Kd6 {[%emt 0:00:30]} 86. Rd1+ {[%emt 0:01:00]} Kc5 {[%emt 0:00:30]} 87. Rb1 {[%emt 0:00:30]} Nd7 {[%emt 0:00:30]} 88. Rc1+ {[%emt 0:00:30]} Kd6 {[%emt 0:00:30]} 89. Kd4 {[%emt 0:00:00]} Nf8 {[%emt 0:00:30]} 90. Re1 {[%emt 0:00:00]} Ne6+ {[%emt 0:00:30]} 91. Kc4 {[%emt 0:00:30]} Nf4 {[%emt 0:00:30]} 92. Re3 {[%emt 0:00:30]} Ne6 {[%emt 0:00:30]} 93. Re4 {[%emt 0:00:30]} Ng5 {[%emt 0:00:30]} 94. Rh4 {[%emt 0:00:00]} Ne6 {[%emt 0:00:30]} 95. Rh5 {[%emt 0:01:00]} Nf4 {[%emt 0:00:30]} 96. Rf5 {[%emt 0:00:00]} Ne6 {[%emt 0:00:00]} 97. Rd5+ {[%emt 0:00:00]} Ke7 {[%emt 0:00:00]} 98. Ra5 {[%emt 0:00:30]} Kd6 {[%emt 0:00:30]} 99. Rd5+ {[%emt 0:01:30]} Ke7 {[%emt 0:00:30]} 100. Rd1 {[%emt 0:00:30]} Kf6 {[%emt 0:00:30]} 101. Kd5 {[%emt 0:00:00]} Nf4+ {[%emt 0:00:00]} 102. Ke4 {[%emt 0:00:00]} Ne6 {[%emt 0:01:00]} 103. Rd6 {[%emt 0:00:30]} Ke7 {[%emt 0:00:00]} 104. Kd5 {[%emt 0:00:30]} Nc7+ {[%emt 0:01:00]} 105. Ke5 {[%emt 0:00:00]} Ne8 {[%emt 0:00:00]} 106. Rh6 {[%emt 0:01:00]} Ng7 {[%emt 0:00:00]} 107. Rb6 {[%emt 0:00:30]} Kf7 {[%emt 0:00:30]} 108. Ra6 {[%emt 0:00:00]} Nh5 {[%emt 0:00:30]} 109. Ra7+ {[%emt 0:00:00]} Kg6 {[%emt 0:00:30]} 110. Ra1 {[%emt 0:00:30]} Ng7 {[%emt 0:00:30]} 111. Rf1 {[%emt 0:00:30]} Nh5 {[%emt 0:00:30]} 112. Rf8 {[%emt 0:00:30]} Kg7 {[%emt 0:00:30]} 113. Ra8 {[%emt 0:00:30]} Kg6 {[%emt 0:00:30]} 114. Ra6+ {[%emt 0:00:30]} Kg5 {[%emt 0:00:30]} 1/2-1/2

[Event "World Junior U20 Open 2018"]
[Site "Gebze"]
[Date "2018.09.12"]
[Round "8.49"]
[White "Ozsakallioglu, Okan"]
[Black "Baenziger, Fabian"]
[Result "1/2-1/2"]
[ECO "B26"]
[WhiteElo "1955"]
[BlackElo "2360"]
[Annotator "NA"]
[PlyCount "71"]
[EventDate "2018.09.05"]
[EventType "swiss"]
[EventCountry "TUR"]
[SourceTitle "playchess.com"]
[Source "ChessBase"]
[SourceQuality "1"]
[TimeControl "40/5400+30:1800+30"]

1. e4 {[%emt 0:00:30]} c5 {[%emt 0:00:30]} 2. Nc3 {[%emt 0:00:30]} Nc6 {[%emt 0:00:30]} 3. g3 {[%emt 0:00:00]} g6 {[%emt 0:00:00]} 4. Bg2 {[%emt 0:00:00]} Bg7 {[%emt 0:00:00]} 5. d3 {[%emt 0:00:00]} d6 {[%emt 0:00:30]} 6. Be3 {[%emt 0:00:00]} Nf6 {[%emt 0:00:00]} 7. h3 {[%emt 0:04:30]} O-O {[%emt 0:00:00]} 8. Qd2 {[%emt 0:00:30]} Rb8 {[%emt 0:00:30]} 9. Nge2 {[%emt 0:00:30]} b5 {[%emt 0:01:30]} 10. Bh6 {[%emt 0:00:00]} Bd7 {[%emt 0:05:30]} 11. O-O {[%emt 0:01:00]} b4 {[%emt 0:05:30]} 12. Nd1 {[%emt 0:00:30]} Qc8 {[%emt 0:00:00]} 13. Bxg7 {[%emt 0:00:30]} Kxg7 {[%emt 0:00:00]} 14. Kh2 {[%emt 0:00:00]} Nd4 {[%emt 0:00:30]} 15. f4 {[%emt 0:00:00]} Bc6 {[%emt 0:04:30]} 16. Ne3 {[%emt 0:00:30]} Qc7 {[%emt 0:06:30]} 17. f5 {[%emt 0:01:30]} Nxe2 {[%emt 0:31:30]} 18. Qxe2 {[%emt 0:00:30]} e6 {[%emt 0:00:00]} 19. Ng4 {[%emt 0:04:30]} Nxg4+ {[%emt 0:10:00]} 20. Qxg4 {[%emt 0:00:30]} exf5 {[%emt 0:00:30]} 21. exf5 {[%emt 0:00:00]} h5 {[%emt 0:01:30]} 22. Qg5 {[%emt 0:00:00]} Bxg2 {[%emt 0:00:30]} 23. Kxg2 {[%emt 0:00:30]} Qc6+ {[%emt 0:05:30]} 24. Kg1 {[%emt 0:02:30]} c4 {[%emt 0:00:00]} 25. fxg6 {[%emt 0:00:30]} Qc5+ {[%emt 0:02:00]} 26. Qxc5 {[%emt 0:00:30]} dxc5 {[%emt 0:00:00]} 27. dxc4 {[%emt 0:00:30]} fxg6 {[%emt 0:00:00]} 28. Rxf8 {[%emt 0:00:30]} Rxf8 {[%emt 0:00:00]} 29. Rd1 {[%emt 0:00:30]} Re8 {[%emt 0:01:00]} 30. Kf2 {[%emt 0:00:30]} Rf8+ {[%emt 0:00:30]} 31. Ke3 {[%emt 0:00:30]} Re8+ {[%emt 0:00:00]} 32. Kf3 {[%emt 0:00:30]} Rf8+ {[%emt 0:00:00]} 33. Ke3 {[%emt 0:00:30]} Re8+ {[%emt 0:00:30]} 34. Kf2 {[%emt 0:00:30]} Rf8+ {[%emt 0:00:00]} 35. Kg2 {[%emt 0:00:30]} Re8 {[%emt 0:00:00]} 36. Kf3 {[%emt 0:01:30]} 1/2-1/2

[Event "World Junior U20 Open 2018"]
[Site "Gebze"]
[Date "2018.09.12"]
[Round "8.50"]
[White "Arcuti, Davide"]
[Black "Gunduz, Umut Erdem"]
[Result "0-1"]
[ECO "A61"]
[WhiteElo "2356"]
[BlackElo "2119"]
[Annotator "NA"]
[PlyCount "100"]
[EventDate "2018.09.05"]
[EventType "swiss"]
[EventCountry "TUR"]
[SourceTitle "playchess.com"]
[Source "ChessBase"]
[SourceQuality "1"]
[TimeControl "40/5400+30:1800+30"]

1. d4 {[%emt 0:00:30]} Nf6 {[%emt 0:00:30]} 2. c4 {[%emt 0:00:30]} c5 {[%emt 0:00:00]} 3. d5 {[%emt 0:00:30]} e6 {[%emt 0:00:00]} 4. Nc3 {[%emt 0:00:30]} exd5 {[%emt 0:00:30]} 5. cxd5 {[%emt 0:00:00]} d6 {[%emt 0:00:00]} 6. Nf3 {[%emt 0:00:00]} g6 {[%emt 0:00:00]} 7. Bf4 {[%emt 0:00:30]} a6 {[%emt 0:01:30]} 8. a4 {[%emt 0:00:30]} Bg7 {[%emt 0:00:00]} 9. h3 {[%emt 0:00:00]} O-O {[%emt 0:00:00]} 10. e3 {[%emt 0:00:00]} Qe7 {[%emt 0:02:30]} 11. Be2 {[%emt 0:00:00]} Nbd7 {[%emt 0:07:30]} 12. O-O {[%emt 0:03:00]} Ne8 {[%emt 0:04:30]} 13. Re1 {[%emt 0:09:30]} b6 {[%emt 0:17:30]} 14. e4 {[%emt 0:17:30]} Nc7 {[%emt 0:05:30]} 15. Ra3 {[%emt 0:10:30]} Ne5 {[%emt 0:02:30]} 16. Nd2 {[%emt 0:02:30]} Bd7 {[%emt 0:05:30]} 17. Bh2 {[%emt 0:06:30]} g5 {[%emt 0:06:30]} 18. Na2 {[%emt 0:09:30]} b5 {[%emt 0:03:30]} 19. b4 {[%emt 0:01:30]} cxb4 {[%emt 0:01:30]} 20. Nxb4 {[%emt 0:00:30]} a5 {[%emt 0:00:30]} 21. Nc6 {[%emt 0:01:30]} Bxc6 {[%emt 0:03:30]} 22. dxc6 {[%emt 0:00:30]} b4 {[%emt 0:00:30]} 23. Re3 {[%emt 0:01:30]} d5 {[%emt 0:07:30]} 24. Nf3 {[%emt 0:07:30]} Nxf3+ {[%emt 0:08:30]} 25. Bxf3 {[%emt 0:00:30]} d4 {[%emt 0:00:30]} 26. Rd3 {[%emt 0:00:00]} Rad8 {[%emt 0:04:59]} 27. e5 {[%emt 0:01:00]} Ne6 {[%emt 0:03:55]} 28. h4 {[%emt 0:03:30]} Qc5 {[%emt 0:10:26]} 29. Be4 {[%emt 0:05:19]} Nf4 {[%emt 0:02:45]} 30. Rg3 {[%emt 0:02:50]} d3 {[%emt 0:00:28]} 31. Rxg5 {[%emt 0:05:41]} d2 {[%emt 0:00:01]} 32. Rf1 {[%emt 0:00:36]} Ne6 {[%emt 0:00:18]} 33. Rh5 {[%emt 0:03:35]} h6 {[%emt 0:00:52]} 34. Kh1 {[%emt 0:03:22]} Qc4 {[%emt 0:00:35]} 35. Bf3 {[%emt 0:01:29]} b3 {[%emt 0:01:54]} 36. Be2 {[%emt 0:00:38]} Qc2 {[%emt 0:00:43]} 37. c7 {[%emt 0:01:55]} Nxc7 {[%emt 0:00:31]} 38. Bf4 {[%emt 0:02:00]} Qxd1 {[%emt 0:00:56]} 39. Rxd1 {[%emt 0:00:30]} b2 {[%emt 0:00:01]} 40. Rb1 {[%emt 0:00:00]} Ne6 {[%emt 0:00:00]} 41. Be3 {[%emt 0:08:35]} Rd5 {[%emt 0:15:17]} 42. Rxb2 {[%emt 0:08:59]} d1=Q+ {[%emt 0:01:32]} 43. Bxd1 {[%emt 0:00:06]} Rxd1+ {[%emt 0:00:06]} 44. Kh2 {[%emt 0:00:00]} Ra1 {[%emt 0:01:12]} 45. f4 {[%emt 0:02:17]} Rxa4 {[%emt 0:00:40]} 46. g3 {[%emt 0:00:00]} Rd8 {[%emt 0:01:29]} 47. Rb5 {[%emt 0:06:04]} Ra3 {[%emt 0:00:43]} 48. Bc1 {[%emt 0:01:22]} Rc3 {[%emt 0:01:05]} 49. Bb2 {[%emt 0:03:01]} Rd2+ {[%emt 0:00:05]} 50. Kh1 {[%emt 0:00:00]} Re3 {[%emt 0:00:19]} 0-1